lending/lending_fUSD_20250819
["ID","MTS","AMOUNT","RATE_DAILY","PERIOD"]
[380282339,1755631640241,-407.03,0.00026013,30]
[380282340,1755631640333,-1863.39,0.00026013,30]
[380282341,1755631640421,-867.04,0.00026013,30]
[380282342,1755631640512,-1625.91,0.00026013,30]
[380282343,1755631640598,-801.03,0.00026013,30]
[380282344,1755631640684,-1784.81,0.00026013,30]
[380282345,1755631640770,-1700.25,0.00026013,30]
[380282346,1755631640861,-834.13,0.00026013,30]
[380282347,1755631640950,-1018.63,0.00026013,30]
[380282348,1755631641037,-484.61,0.00026013,30]
[380282349,1755631641129,-400.0,0.00026013,30]
[380282350,1755631641221,-1460.04,0.00026013,30]
[380282351,1755631641316,-2527.74,0.00026013,30]
[380282352,1755631641411,-1812.27,0.00026013,30]
[380282353,1755631641502,-400.0,0.00026013,30]
[380282354,1755631641589,-1890.92,0.00026013,30]
[380282355,1755631641679,-400.0,0.00026013,30]
[380282356,1755631641769,-400.0,0.00026013,30]
[380282357,1755631642073,-1775.43,0.00026013,30]
[380282358,1755631642168,-400.0,0.00026013,30]
[380282359,1755631642259,-1357.73,0.00026013,30]
[380282360,1755631642355,-1487.81,0.00026013,30]
[380282361,1755631642447,-511.96329027,0.00026013,30]
[380282362,1755631642537,-400.0,0.00026013,30]
[380282363,1755631642625,-1146.31,0.00026013,30]
[380282364,1755631642714,-400.0,0.00026013,30]
[380282365,1755631642808,-1420.57,0.00026013,30]
[380282366,1755631642903,-2399.65,0.00026013,30]
[380282367,1755631642986,-400.0,0.00026013,30]
[380282368,1755631643075,-444.69,0.00026013,30]
[380282369,1755631643168,-713.75,0.00026013,30]
[380282370,1755631643259,-400.0,0.00026013,30]
[380282371,1755631643351,-4699.45,0.00026013,30]
[380282372,1755631643445,-840.72,0.00026013,30]
[380282373,1755631643538,-400.0,0.00026013,30]
[380282374,1755631643629,-1623.73,0.00026013,30]
[380282375,1755631643717,-630.29,0.00026013,30]
[380282376,1755631643807,-458.85,0.00026013,30]
[380282377,1755631643898,-1470.22,0.00026013,30]
[380282378,1755631643987,-251.34666834,0.00026013,30]
[380282379,1755631644072,-1256.26,0.00026013,30]
[380282380,1755631644164,-581.67,0.00026013,30]
[380282381,1755631644255,-1449.63,0.00026013,30]
[380282382,1755631644351,-1569.5,0.00026013,30]
[380282383,1755631644443,-2257.43,0.00026013,30]
[380282384,1755631644533,-400.0,0.00026013,30]
[380282385,1755631644625,-1571.79,0.00026013,30]
[380282386,1755631644716,-400.0,0.00026013,30]
[380282387,1755631644798,-400.0,0.00026013,30]
[380282388,1755631644887,-1522.01,0.00026013,30]
[380282389,1755631644977,-1158.37,0.00026013,30]
[380282390,1755631645067,-584.13,0.00026013,30]
[380282391,1755631645159,-957.91,0.00026013,30]
[380282392,1755631645253,-2491.69,0.00026013,30]
[380282393,1755631645348,-2492.12,0.00026013,30]
[380282394,1755631645439,-1980.77,0.00026013,30]
[380282395,1755631645532,-400.0,0.00026013,30]
[380282396,1755631645628,-1928.22,0.00026013,30]
[380282397,1755631645721,-553.68,0.00026013,30]
[380282398,1755631645814,-400.0,0.00026013,30]
[380282399,1755631645907,-2354.42,0.00026013,30]
[380282400,1755631646000,-1644.87,0.00026013,30]
[380282401,1755631646104,-2216.05,0.00026013,30]
[380282402,1755631646197,-2825.62,0.00026013,30]
[380282403,1755631646288,-619.98,0.00026013,30]
[380282404,1755631646382,-651.62,0.00026013,30]
[380282405,1755631646477,-3485.03,0.00026013,30]
[380282406,1755631646576,-1412.21,0.00026013,30]
[380282407,1755631646667,-1725.57,0.00026013,30]
[380282408,1755631646759,-2140.32,0.00026013,30]
[380282409,1755631646851,-2069.46,0.00026013,30]
[380282410,1755631646943,-400.0,0.00026013,30]
[380282411,1755631647050,-400.0,0.00026013,30]
[380282412,1755631647149,-400.0,0.00026013,30]
[380282413,1755631647241,-1586.23,0.00026013,30]
[380282414,1755631647332,-2222.5,0.00026013,30]
[380282415,1755631647423,-400.0,0.00026013,30]
[380282416,1755631647522,-2119.53,0.00026013,30]
[380282417,1755631647614,-547.34,0.00026013,30]
[380282418,1755631647701,-1811.4,0.00026013,30]
[380282419,1755631647793,-1086.92,0.00026013,30]
[380282420,1755631647884,-1030.88,0.00026013,30]
[380282421,1755631647975,-868.92,0.00026013,30]
[380282422,1755631648065,-400.0,0.00026013,30]
[380282423,1755631648159,-423.65,0.00026013,30]
[380282424,1755631648255,-451.11,0.00026013,30]
[380282425,1755631648354,-400.0,0.00026013,30]
[380282426,1755631648445,-400.0,0.00026013,30]
[380282427,1755631648538,-597.08,0.00026013,30]
[380282428,1755631648633,-1474.99,0.00026013,30]
[380282429,1755631648727,-1897.14,0.00026013,30]
[380282430,1755631648823,-2071.19,0.00026013,30]
[380282431,1755631648914,-1986.02,0.00026013,30]
[380282432,1755631649003,-1857.48,0.00026013,30]
[380282433,1755631649098,-1653.8,0.00026013,30]
[380282434,1755631649190,-911.85,0.00026013,30]
[380282435,1755631649281,-1758.09,0.00026013,30]
[380282436,1755631649374,-1521.0,0.00026013,30]
[380282437,1755631649468,-676.72,0.00026013,30]
[380282438,1755631649556,-2274.26,0.00026013,30]
[380282439,1755631649645,-1298.17,0.00026013,30]
[380282440,1755631649732,-613.1,0.00026013,30]
[380282441,1755631649820,-695.86,0.00026013,30]
[380282442,1755631649907,-1491.99,0.00026013,30]
[380282443,1755631649998,-409.19302557,0.00026013,30]
[380282444,1755631650091,-1980.26,0.00026013,30]
[380282445,1755631650182,-400.25,0.00026013,30]
[380282446,1755631650275,-1577.29,0.00026013,30]
[380282447,1755631650368,-400.0,0.00026013,30]
[380282448,1755631650460,-400.0,0.00026013,30]
[380282449,1755631650554,-2002.7,0.00026013,30]
[380282450,1755631650651,-1266.16,0.00026013,30]
[380282451,1755631650742,-1366.49,0.00026013,30]
[380282452,1755631650836,-406.66,0.00026013,30]
[380282453,1755631650935,-508.05,0.00026013,30]
[380282454,1755631651029,-528.92,0.00026013,30]
[380282455,1755631651122,-1776.47,0.00026013,30]
[380282456,1755631651217,-2414.67,0.00026013,30]
[380282457,1755631651324,-2527.19,0.00026013,30]
[380282458,1755631651420,-2175.76,0.00026013,30]
[380282459,1755631651513,-2752.59,0.00026013,30]
[380282460,1755631651606,-400.0,0.00026013,30]
[380282461,1755631651708,-588.39,0.00026013,30]
[380282462,1755631651794,-1345.68,0.00026013,30]
[380282463,1755631651878,-824.04,0.00026013,30]
[380282464,1755631651971,-1251.07,0.00026013,30]
[380282465,1755631652059,-1948.12,0.00026013,30]
[380282466,1755631652151,-400.0,0.00026013,30]
[380282467,1755631652240,-2377.39,0.00026013,30]
[380282469,1755631652331,-2026.03,0.00026013,30]
[380282470,1755631652427,-2114.04,0.00026013,30]
[380282471,1755631652519,-400.0,0.00026013,30]
[380282472,1755631652996,-953.13,0.00026013,30]
[380282473,1755631653096,-849.78,0.00026013,30]
[380282474,1755631653187,-843.06,0.00026013,30]
[380282475,1755631653277,-728.87,0.00026013,30]
[380282476,1755631653370,-940.93,0.00026013,30]
[380282477,1755631653470,-400.0,0.00026013,30]
[380282478,1755631653570,-1596.52,0.00026013,30]
[380282479,1755631653665,-1905.5,0.00026013,30]
[380282480,1755631653758,-902.59,0.00026013,30]
[380282481,1755631653854,-530.30524253,0.00026013,30]
[380282482,1755631653955,-362.29,0.00026013,30]
[380282483,1755631654055,-687.3,0.00026013,30]
[380282484,1755631654154,-2543.56,0.00026013,30]
[380282485,1755631654253,-400.0,0.00026013,30]
[380282486,1755631654353,-609.42,0.00026013,30]
[380282487,1755631654451,-1773.97,0.00026013,30]
[380282488,1755631654548,-1735.8,0.00026013,30]
[380282489,1755631654641,-1297.44,0.00026013,30]
[380282490,1755631654731,-1858.51,0.00026013,30]
[380282491,1755631654819,-1244.43,0.00026013,30]
[380282492,1755631654909,-805.88,0.00026013,30]
[380282493,1755631655001,-1784.43,0.00026013,30]
[380282494,1755631655093,-501.46,0.00026013,30]
[380282495,1755631655196,-1529.76,0.00026013,30]
[380282496,1755631655290,-672.98,0.00026013,30]
[380282497,1755631655386,-600.82,0.00026013,30]
[380282498,1755631655475,-1465.85,0.00026013,30]
[380282499,1755631655565,-1931.93,0.00026013,30]
[380282500,1755631655654,-2147.31,0.00026013,30]
[380282501,1755631655741,-1567.3,0.00026013,30]
[380282502,1755631655828,-2038.08,0.00026013,30]
[380282503,1755631655916,-1367.91,0.00026013,30]
[380282504,1755631656005,-400.0,0.00026013,30]
[380282505,1755631656104,-400.0,0.00026013,30]
[380282506,1755631656199,-1620.7,0.00026013,30]
[380282507,1755631656291,-2163.3,0.00026013,30]
[380282508,1755631656381,-845.95,0.00026013,30]
[380282509,1755631656469,-1692.55,0.00026013,30]
[380282510,1755631656560,-400.0,0.00026013,30]
[380282511,1755631656646,-2121.39,0.00026013,30]
[380282512,1755631656736,-1740.78,0.00026013,30]
[380282513,1755631656821,-429.43,0.00026013,30]
[380282514,1755631656907,-1828.54,0.00026013,30]
[380282515,1755631656993,-2012.79,0.00026013,30]
[380282516,1755631657081,-708.39,0.00026013,30]
[380282517,1755631657175,-2499.8,0.00026013,30]
[380282518,1755631657262,-1426.86,0.00026013,30]
[380282519,1755631657352,-664.56,0.00026013,30]
[380282520,1755631657444,-1463.09,0.00026013,30]
[380282521,1755631657532,-1913.73,0.00026013,30]
[380282522,1755631657619,-1552.03,0.00026013,30]
[380282523,1755631657711,-2436.61,0.00026013,30]
[380282524,1755631657803,-1392.77,0.00026013,30]
[380282525,1755631657896,-846.92,0.00026013,30]
[380282526,1755631657981,-1000.0,0.00026013,30]
[380282527,1755631658065,-1763.74,0.00026013,30]
[380282528,1755631658147,-400.0,0.00026013,30]
[380282529,1755631658235,-512.20500897,0.00026013,30]
[380282530,1755631658325,-744.5,0.00026013,30]
[380282531,1755631658620,-1099.58,0.00026013,30]
[380282532,1755631658708,-665.76,0.00026013,30]
[380282533,1755631658792,-400.0,0.00026013,30]
[380282534,1755631658877,-1281.3,0.00026013,30]
[380282535,1755631658965,-400.0,0.00026013,30]
[380282536,1755631659061,-1252.4,0.00026013,30]
[380282537,1755631659155,-3616.11,0.00026013,30]
[380282538,1755631659243,-407.83,0.00026013,30]
[380282539,1755631659328,-1482.09,0.00026013,30]
[380282540,1755631659415,-1414.83,0.00026013,30]
[380282541,1755631659500,-2032.19,0.00026013,30]
[380282542,1755631659587,-400.0,0.00026013,30]
[380282543,1755631659677,-1578.98,0.00026013,30]
[380282544,1755631659763,-2398.45,0.00026013,30]
[380282545,1755631659849,-766.85,0.00026013,30]
[380282546,1755631659936,-1851.5,0.00026013,30]
[380282547,1755631660021,-1329.85,0.00026013,30]
[380282548,1755631660112,-400.0,0.00026013,30]
[380282549,1755631660200,-1371.61,0.00026013,30]
[380282550,1755631660289,-1402.72,0.00026013,30]
[380282551,1755631660379,-589.37,0.00026013,30]
[380282552,1755631660474,-400.0,0.00026013,30]
[380282553,1755631660563,-1582.32,0.00026013,30]
[380282554,1755631660654,-1558.06,0.00026013,30]
[380282555,1755631660741,-901.56,0.00026013,30]
[380282556,1755631660838,-1663.17,0.00026013,30]
[380282557,1755631660927,-400.0,0.00026013,30]
[380282558,1755631661016,-1613.79,0.00026013,30]
[380282559,1755631661101,-1045.63,0.00026013,30]
[380282560,1755631661190,-749.46,0.00026013,30]
[380282561,1755631661291,-1627.15,0.00026013,30]
[380282562,1755631661380,-609.27,0.00026013,30]
[380282563,1755631661466,-7059.23,0.00026013,30]
[380282564,1755631661552,-435.18,0.00026013,30]
[380282565,1755631661638,-400.0,0.00026013,30]
[380282566,1755631661724,-2089.62,0.00026013,30]
[380282567,1755631661804,-1260.34,0.00026013,30]
[380282568,1755631661890,-563.93,0.00026013,30]
[380282569,1755631661974,-1502.06,0.00026013,30]
[380282570,1755631662058,-400.0,0.00026013,30]
[380282571,1755631662143,-6403.8,0.00026013,30]
[380282572,1755631662230,-1985.34,0.00026013,30]
[380282573,1755631662318,-1048.51,0.00026013,30]
[380282574,1755631662403,-400.0,0.00026013,30]
[380282575,1755631662490,-400.0,0.00026013,30]
[380282576,1755631662571,-1399.36,0.00026013,30]
[380282577,1755631662660,-400.0,0.00026013,30]
[380282578,1755631662745,-400.0,0.00026013,30]
[380282579,1755631662828,-1781.2,0.00026013,30]
[380282580,1755631662911,-705.16,0.00026013,30]
[380282581,1755631662994,-681.02,0.00026013,30]
[380282582,1755631663082,-1740.19,0.00026013,30]
[380282583,1755631663168,-847.25,0.00026013,30]
[380282584,1755631663257,-1383.16,0.00026013,30]
[380282585,1755631663344,-1262.42,0.00026013,30]
[380282586,1755631663430,-2644.58,0.00026013,30]
[380282587,1755631663516,-1521.72,0.00026013,30]
[380282588,1755631663833,-408.62,0.00026013,30]
[380282589,1755631663921,-1779.17,0.00026013,30]
[380282590,1755631664008,-2168.42,0.00026013,30]
[380282591,1755631664100,-1178.75,0.00026013,30]
[380282592,1755631664189,-1810.97,0.00026013,30]
[380282593,1755631664277,-400.0,0.00026013,30]
[380282594,1755631664364,-616.31,0.00026013,30]
[380282595,1755631664455,-400.0,0.00026013,30]
[380282596,1755631664543,-437.3,0.00026013,30]
[380282597,1755631664636,-1396.52,0.00026013,30]
[380282598,1755631664722,-900.37,0.00026013,30]
[380282599,1755631664808,-661.58,0.00026013,30]
[380282600,1755631664896,-400.0,0.00026013,30]
[380282601,1755631664984,-1029.85,0.00026013,30]
[380282602,1755631665073,-3238.02,0.00026013,30]
[380282603,1755631665167,-524.58,0.00026013,30]
[380282604,1755631665265,-528.92,0.00026013,30]
[380282605,1755631665355,-1367.19,0.00026013,30]
[380282606,1755631665447,-400.0,0.00026013,30]
[380282607,1755631665535,-438.54,0.00026013,30]
[380282608,1755631665624,-1736.94,0.00026013,30]
[380282609,1755631665713,-1444.28,0.00026013,30]
[380282610,1755631665800,-2052.18,0.00026013,30]
[380282611,1755631665886,-1214.14,0.00026013,30]
[380282612,1755631665974,-1257.53,0.00026013,30]
[380282613,1755631666060,-400.0,0.00026013,30]
[380282614,1755631666148,-400.0,0.00026013,30]
[380282615,1755631666244,-809.42,0.00026013,30]
[380282616,1755631666333,-1942.42,0.00026013,30]
[380282617,1755631666422,-617.46,0.00026013,30]
[380282618,1755631666512,-1699.43,0.00026013,30]
[380282619,1755631666601,-400.0,0.00026013,30]
[380282620,1755631666688,-1369.92,0.00026013,30]
[380282621,1755631666777,-400.0,0.00026013,30]
[380282622,1755631666863,-2169.5,0.00026013,30]
[380282623,1755631666952,-1393.2,0.00026013,30]
[380282624,1755631667046,-301.50520829,0.00026013,30]
[380282625,1755631667146,-542.49845356,0.00026013,30]
[380282626,1755631667251,-823.8,0.00026013,30]
[380282627,1755631667347,-1784.2,0.00026013,30]
[380282628,1755631667438,-550.99,0.00026013,30]
[380282629,1755631667535,-1416.58,0.00026013,30]
[380282630,1755631667626,-1565.79,0.00026013,30]
[380282631,1755631667713,-1403.3,0.00026013,30]
[380282632,1755631667798,-642.58,0.00026013,30]
[380282633,1755631667882,-2128.32,0.00026013,30]
[380282634,1755631667987,-776.51,0.00026013,30]
[380282635,1755631668073,-400.0,0.00026013,30]
[380282636,1755631668160,-1992.46,0.00026013,30]
[380282637,1755631668248,-646.11,0.00026013,30]
[380282638,1755631668337,-942.07,0.00026013,30]
[380282639,1755631668438,-1398.76,0.00026013,30]
[380282640,1755631668533,-1374.85,0.00026013,30]
[380282641,1755631668620,-622.04,0.00026013,30]
[380282642,1755631668706,-400.0,0.00026013,30]
[380282643,1755631668793,-400.0,0.00026013,30]
[380282644,1755631668878,-400.0,0.00026013,30]
[380282645,1755631668967,-436.45,0.00026013,30]
[380282646,1755631669071,-500.0,0.00026028,30]
[380282647,1755631669160,-400.0,0.00026287,30]
[380282648,1755631669249,-400.0,0.00026287,30]
[380282649,1755631669338,-400.0,0.00026287,30]
[380282650,1755631669427,-400.0,0.00026287,30]
[380282651,1755631669514,-177.64815119,0.00026287,30]
[380282652,1755631669601,-400.0,0.00026287,30]
[380282653,1755631669688,-400.0,0.00026287,30]
[380282654,1755631669770,-400.0,0.00026287,30]
[380282655,1755631669856,-400.0,0.00026287,30]
[380282656,1755631669937,-400.0,0.00026287,30]
[380282657,1755631670021,-400.0,0.00026287,30]
[380282658,1755631670106,-400.0,0.00026287,30]
[380282659,1755631670191,-417.35825549,0.00026287,30]
[380282660,1755631670276,-400.0,0.00026287,30]
[380282661,1755631670361,-400.0,0.00026287,30]
[380282662,1755631670450,-400.0,0.00026287,30]
[380282663,1755631670545,-400.0,0.00026287,30]
[380282664,1755631670634,-1227.79,0.00026287,30]
[380282665,1755631670719,-400.0,0.00026287,30]
[380282666,1755631670808,-400.0,0.00026287,30]
[380282667,1755631670897,-400.0,0.00026287,30]
[380282668,1755631670985,-400.0,0.00026287,30]
[380282669,1755631671072,-400.0,0.00026287,30]
[380282670,1755631671162,-400.0,0.00026287,30]
[380282671,1755631671255,-400.0,0.00026287,30]
[380282672,1755631671346,-400.0,0.00026287,30]
[380282673,1755631671433,-400.0,0.00026287,30]
[380282674,1755631671524,-400.0,0.00026287,30]
[380282675,1755631671612,-585.37,0.00026287,30]
[380282676,1755631671699,-400.0,0.00026287,30]
[380282677,1755631671788,-990.17,0.00026287,30]
[380282678,1755631671877,-837.81,0.00026287,30]
[380282679,1755631671964,-684.54,0.00026287,30]
[380282680,1755631672053,-400.0,0.00026287,30]
[380282681,1755631672140,-916.66,0.00026287,30]
[380282682,1755631672235,-1962.6,0.00026287,30]
[380282683,1755631672324,-539.12,0.00026287,30]
[380282684,1755631672412,-400.0,0.00026287,30]
[380282685,1755631672501,-903.83,0.00026287,30]
[380282686,1755631672587,-1813.68,0.00026287,30]
[380282687,1755631672671,-666.94,0.00026287,30]
[380282688,1755631672754,-400.0,0.00026287,30]
[380282689,1755631672840,-400.0,0.00026287,30]
[380282690,1755631672925,-1217.67,0.00026287,30]
[380282691,1755631673015,-617.22,0.00026287,30]
[380282692,1755631673105,-400.0,0.00026287,30]
[380282693,1755631673197,-1451.41,0.00026287,30]
[380282694,1755631673285,-850.21,0.00026287,30]
[380282695,1755631673372,-400.0,0.00026287,30]
[380282696,1755631673459,-893.8,0.00026287,30]
[380282697,1755631673547,-400.0,0.00026287,30]
[380282698,1755631673631,-1524.91,0.00026287,30]
[380282699,1755631673716,-400.0,0.00026287,30]
[380282700,1755631673801,-1091.34,0.00026287,30]
[380282701,1755631673887,-1777.71,0.00026287,30]
[380282702,1755631674214,-1517.91,0.00026287,30]
[380282703,1755631674306,-737.73,0.00026287,30]
[380282704,1755631674400,-1092.33,0.00026287,30]
[380282705,1755631674489,-400.0,0.00026287,30]
[380282706,1755631674578,-1154.89,0.00026287,30]
[380282707,1755631674666,-1604.08,0.00026287,30]
[380282708,1755631674757,-400.0,0.00026287,30]
[380282709,1755631674848,-558.64,0.00026287,30]
[380282710,1755631674936,-464.91,0.00026287,30]
[380282711,1755631675026,-400.0,0.00026287,30]
[380282712,1755631675115,-400.0,0.00026287,30]
[380282713,1755631675205,-1174.54,0.00026287,30]
[380282714,1755631675304,-400.0,0.00026287,30]
[380282715,1755631675398,-400.0,0.00026287,30]
[380282716,1755631675491,-467.39,0.00026287,30]
[380282717,1755631675586,-645.33,0.00026287,30]
[380282718,1755631675675,-410.72,0.00026287,30]
[380282719,1755631675761,-400.0,0.00026287,30]
[380282720,1755631675847,-400.0,0.00026287,30]
[380282721,1755631675934,-591.41,0.00026287,30]
[380282722,1755631676031,-400.0,0.00026287,30]
[380282723,1755631676122,-1211.51,0.00026287,30]
[380282724,1755631676204,-657.43,0.00026287,30]
[380282725,1755631676290,-1321.19,0.00026287,30]
[380282726,1755631676383,-2333.41,0.00026287,30]
[380282727,1755631676467,-3141.86,0.00026287,30]
[380282728,1755631676549,-441.64,0.00026287,30]
[380282729,1755631676629,-610.43,0.00026287,30]
[380282730,1755631676712,-1312.21,0.00026287,30]
[380282731,1755631676791,-912.37,0.00026287,30]
[380282732,1755631676869,-542.11,0.00026287,30]
[380282733,1755631676953,-854.75,0.00026287,30]
[380282734,1755631677042,-582.29,0.00026287,30]
[380282735,1755631677130,-807.81,0.00026287,30]
[380282736,1755631677215,-2108.39,0.00026287,30]
[380282737,1755631677304,-380.8897154,0.00026287,30]
[380282738,1755631677386,-1028.43,0.00026287,30]
[380282739,1755631677471,-494.07,0.00026287,30]
[380282740,1755631677550,-1485.66,0.00026287,30]
[380282741,1755631677629,-400.0,0.00026287,30]
[380282742,1755631677713,-716.5,0.00026287,30]
[380282743,1755631677790,-400.0,0.00026287,30]
[380282744,1755631677867,-1382.11,0.00026287,30]
[380282745,1755631677948,-408.32,0.00026287,30]
[380282746,1755631678034,-812.97,0.00026287,30]
[380282747,1755631678120,-1007.53,0.00026287,30]
[380282748,1755631678202,-632.73,0.00026287,30]
[380282749,1755631678289,-447.89,0.00026287,30]
[380282750,1755631678373,-744.53,0.00026287,30]
[380282751,1755631678462,-1672.31,0.00026287,30]
[380282752,1755631678549,-1648.48,0.00026287,30]
[380282753,1755631678630,-449.47732451,0.00026287,30]
[380282754,1755631678716,-1855.67,0.00026287,30]
[380282755,1755631678802,-1549.4,0.00026287,30]
[380282756,1755631678886,-549.35,0.00026287,30]
[380282757,1755631678973,-2521.93,0.00026287,30]
[380282758,1755631679073,-407.03,0.00026287,30]
[380282759,1755631679171,-1863.39,0.00026287,30]
[380282760,1755631679257,-867.04,0.00026287,30]
[380282761,1755631679343,-1625.91,0.00026287,30]
[380282762,1755631679430,-801.03,0.00026287,30]
[380282763,1755631679514,-1784.81,0.00026287,30]
[380282764,1755631679600,-1700.25,0.00026287,30]
[380282765,1755631679686,-834.13,0.00026287,30]
[380282766,1755631679769,-1018.63,0.00026287,30]
[380282767,1755631679853,-484.61,0.00026287,30]
[380282768,1755631679938,-400.0,0.00026287,30]
[380282769,1755631680026,-1460.04,0.00026287,30]
[380282770,1755631680113,-2527.74,0.00026287,30]
[380282771,1755631680208,-400.0,0.00026287,30]
[380282772,1755631680298,-1812.27,0.00026287,30]
[380282773,1755631680388,-1890.92,0.00026287,30]
[380282774,1755631680475,-400.0,0.00026287,30]
[380282775,1755631680559,-400.0,0.00026287,30]
[380282776,1755631680642,-400.0,0.00026287,30]
[380282777,1755631680725,-1775.43,0.00026287,30]
[380282778,1755631680809,-400.0,0.00026287,30]
[380282779,1755631680891,-1357.73,0.00026287,30]
[380282780,1755631680974,-1487.81,0.00026287,30]
[380282781,1755631681058,-400.0,0.00026287,30]
[380282782,1755631681146,-1146.31,0.00026287,30]
[380282783,1755631681232,-400.0,0.00026287,30]
[380282784,1755631681318,-1420.57,0.00026287,30]
[380282785,1755631681405,-2399.65,0.00026287,30]
[380282786,1755631681489,-400.0,0.00026287,30]
[380282787,1755631681587,-444.69,0.00026287,30]
[380282788,1755631681675,-713.75,0.00026287,30]
[380282789,1755631681760,-400.0,0.00026287,30]
[380282790,1755631681857,-4699.45,0.00026287,30]
[380282791,1755631681943,-840.72,0.00026287,30]
[380282792,1755631682028,-400.0,0.00026287,30]
[380282793,1755631682112,-1623.73,0.00026287,30]
[380282794,1755631682200,-630.29,0.00026287,30]
[380282795,1755631682288,-458.85,0.00026287,30]
[380282796,1755631682375,-1470.22,0.00026287,30]
[380282797,1755631682462,-1256.26,0.00026287,30]
[380282798,1755631682551,-581.67,0.00026287,30]
[380282799,1755631682637,-1449.63,0.00026287,30]
[380282800,1755631682723,-1569.5,0.00026287,30]
[380282801,1755631682805,-2257.43,0.00026287,30]
[380282802,1755631682889,-400.0,0.00026287,30]
[380282803,1755631682970,-1571.79,0.00026287,30]
[380282804,1755631683056,-400.0,0.00026287,30]
[380282805,1755631683141,-400.0,0.00026287,30]
[380282806,1755631683229,-1522.01,0.00026287,30]
[380282807,1755631683319,-1158.37,0.00026287,30]
[380282808,1755631683406,-584.13,0.00026287,30]
[380282809,1755631683494,-957.91,0.00026287,30]
[380282810,1755631683583,-2491.69,0.00026287,30]
[380282811,1755631683668,-2492.12,0.00026287,30]
[380282812,1755631683754,-400.0,0.00026287,30]
[380282813,1755631683840,-1980.77,0.00026287,30]
[380282814,1755631683925,-1928.22,0.00026287,30]
[380282815,1755631684012,-553.68,0.00026287,30]
[380282816,1755631684101,-400.0,0.00026287,30]
[380282817,1755631684546,-2354.42,0.00026287,30]
[380282818,1755631684630,-1644.87,0.00026287,30]
[380282819,1755631684714,-2216.05,0.00026287,30]
[380282820,1755631684800,-2825.62,0.00026287,30]
[380282821,1755631684883,-619.98,0.00026287,30]
[380282822,1755631684966,-651.62,0.00026287,30]
[380282823,1755631685051,-3485.03,0.00026287,30]
[380282824,1755631685133,-1412.21,0.00026287,30]
[380282825,1755631685219,-1725.57,0.00026287,30]
[380282826,1755631685305,-2140.32,0.00026287,30]
[380282827,1755631685390,-2069.46,0.00026287,30]
[380282828,1755631685473,-400.0,0.00026287,30]
[380282829,1755631685560,-400.0,0.00026287,30]
[380282830,1755631685643,-400.0,0.00026287,30]
[380282831,1755631685726,-1586.23,0.00026287,30]
[380282832,1755631685808,-2222.5,0.00026287,30]
[380282833,1755631685890,-400.0,0.00026287,30]
[380282834,1755631685972,-2119.53,0.00026287,30]
[380282835,1755631686056,-547.34,0.00026287,30]
[380282836,1755631686140,-1811.4,0.00026287,30]
[380282837,1755631686225,-1030.88,0.00026287,30]
[380282838,1755631686312,-1086.92,0.00026287,30]
[380282839,1755631686401,-868.92,0.00026287,30]